[Event "Live Chess"]
[Site "Chess.com"]
[Date "2023.05.20"]
[Round "-"]
[White "NAZRIZ1977"]
[Black "18Ziyad"]
[Result "1-0"]
[WhiteElo "2146"]
[BlackElo "986"]
[TimeControl "300"]
[EndTime "10:43:15 PDT"]
[Termination "NAZRIZ1977 won by checkmate"]

1. c4 {[%clk 0:04:57]} 1... e5 {[%clk 0:04:58.6]} 2. g3 {[%clk 0:04:56.5]} 2...
Nf6 {[%clk 0:04:56.7]} 3. Bg2 {[%clk 0:04:56.1]} 3... d6 {[%clk 0:04:55.5]} 4.
d4 {[%clk 0:04:54.6]} 4... exd4 {[%clk 0:04:47.2]} 5. Qxd4 {[%clk 0:04:53.8]}
5... Nc6 {[%clk 0:04:47.1]} 6. Qd1 {[%clk 0:04:52.1]} 6... Bd7 {[%clk
0:04:45.7]} 7. Nc3 {[%clk 0:04:51.5]} 7... g6 {[%clk 0:04:42.5]} 8. Nf3 {[%clk
0:04:50.2]} 8... Bg7 {[%clk 0:04:41.3]} 9. O-O {[%clk 0:04:49.9]} 9... O-O
{[%clk 0:04:40.7]} 10. Rb1 {[%clk 0:04:44.4]} 10... Qe7 {[%clk 0:04:38.2]} 11.
Bg5 {[%clk 0:04:43]} 11... Rfe8 {[%clk 0:04:36.8]} 12. Nd5 {[%clk 0:04:41.8]}
12... Qe6 {[%clk 0:04:24.1]} 13. Nxc7 {[%clk 0:04:40.7]} 13... Qxe2 {[%clk
0:04:20]} 14. Qxe2 {[%clk 0:04:37.7]} 14... Rxe2 {[%clk 0:04:19.9]} 15. Nxa8
{[%clk 0:04:37.1]} 15... Ne4 {[%clk 0:04:13.7]} 16. Nc7 {[%clk 0:04:33.9]} 16...
Nxg5 {[%clk 0:04:10.7]} 17. Nxg5 {[%clk 0:04:33]} 17... Bc8 {[%clk 0:04:02.4]}
18. Nd5 {[%clk 0:04:31.3]} 18... Bxb2 {[%clk 0:03:58.2]} 19. Rfe1 {[%clk
0:04:26.8]} 19... Rxe1+ {[%clk 0:03:46.5]} 20. Rxe1 {[%clk 0:04:25.1]} 20... Bd7
{[%clk 0:03:46.4]} 21. Rb1 {[%clk 0:04:19.4]} 21... Bd4 {[%clk 0:03:31.8]} 22.
Rxb7 {[%clk 0:04:19.3]} 22... Be6 {[%clk 0:03:27.2]} 23. Nxe6 {[%clk 0:04:16.5]}
23... fxe6 {[%clk 0:03:27.1]} 24. Ne7+ {[%clk 0:04:16.4]} 24... Nxe7 {[%clk
0:03:23.9]} 25. Rxe7 {[%clk 0:04:15.3]} 25... e5 {[%clk 0:03:18.6]} 26. Bd5+
{[%clk 0:04:12.5]} 26... Kh8 {[%clk 0:03:13.9]} 27. g4 {[%clk 0:04:11.9]} 27...
Bc5 {[%clk 0:03:10.9]} 28. g5 {[%clk 0:04:10.6]} 28... a5 {[%clk 0:02:55.3]} 29.
Re8+ {[%clk 0:04:08.4]} 29... Kg7 {[%clk 0:02:53.6]} 30. Rg8# {[%clk 0:04:08.3]}
1-0

[Event "Live Chess"]
[Site "Chess.com"]
[Date "2023.05.20"]
[Round "-"]
[White "peter-785"]
[Black "wot-not"]
[Result "0-1"]
[WhiteElo "1157"]
[BlackElo "1463"]
[TimeControl "300"]
[EndTime "10:43:19 PDT"]
[Termination "wot-not won on time"]

1. e4 {[%clk 0:04:56.3]} 1... e5 {[%clk 0:04:58.8]} 2. Nf3 {[%clk 0:04:54.7]}
2... d6 {[%clk 0:04:58]} 3. Bc4 {[%clk 0:04:53.6]} 3... f5 {[%clk 0:04:13.2]} 4.
d4 {[%clk 0:04:35.7]} 4... fxe4 {[%clk 0:04:10.2]} 5. Nfd2 {[%clk 0:04:28.7]}
5... Nf6 {[%clk 0:04:01]} 6. dxe5 {[%clk 0:04:20.6]} 6... dxe5 {[%clk
0:03:57.9]} 7. O-O {[%clk 0:04:10]} 7... Bc5 {[%clk 0:03:50.9]} 8. Nb3 {[%clk
0:03:58.5]} 8... Qxd1 {[%clk 0:03:49]} 9. Rxd1 {[%clk 0:03:55.3]} 9... Bb6
{[%clk 0:03:47.4]} 10. Nc3 {[%clk 0:03:46]} 10... Bf5 {[%clk 0:03:32.9]} 11. Bg5
{[%clk 0:03:38.9]} 11... Nbd7 {[%clk 0:03:30]} 12. Na4 {[%clk 0:03:12.1]} 12...
O-O-O {[%clk 0:03:25.1]} 13. Bxf6 {[%clk 0:02:52.3]} 13... gxf6 {[%clk
0:03:22.8]} 14. Nxb6+ {[%clk 0:02:51.2]} 14... Nxb6 {[%clk 0:03:21.2]} 15. Be2
{[%clk 0:02:34.7]} 15... Nd5 {[%clk 0:03:06.9]} 16. c4 {[%clk 0:02:24.7]} 16...
Nf4 {[%clk 0:03:05.5]} 17. Bf1 {[%clk 0:02:15.3]} 17... Nd3 {[%clk 0:03:01.4]}
18. Bxd3 {[%clk 0:01:53.1]} 18... exd3 {[%clk 0:03:00.1]} 19. Nc5 {[%clk
0:01:51.6]} 19... e4 {[%clk 0:02:54.5]} 20. b3 {[%clk 0:01:39.7]} 20... b6
{[%clk 0:02:33]} 21. Na4 {[%clk 0:01:32.5]} 21... Bg6 {[%clk 0:02:26]} 22. Rd2
{[%clk 0:01:26.6]} 22... f5 {[%clk 0:02:23.2]} 23. Nc3 {[%clk 0:01:23.9]} 23...
c6 {[%clk 0:02:16.6]} 24. Rad1 {[%clk 0:01:16.7]} 24... h5 {[%clk 0:02:13.9]}
25. h4 {[%clk 0:01:13.6]} 25... Rhg8 {[%clk 0:02:04.3]} 26. Kh2 {[%clk
0:01:09.6]} 26... Bf7 {[%clk 0:02:00.4]} 27. g3 {[%clk 0:01:06.9]} 27... Kb7
{[%clk 0:01:51.3]} 28. Rf1 {[%clk 0:01:01.4]} 28... a6 {[%clk 0:01:44.6]} 29.
Nd1 {[%clk 0:00:51.9]} 29... b5 {[%clk 0:01:34.5]} 30. c5 {[%clk 0:00:45.1]}
30... a5 {[%clk 0:01:20.7]} 31. Ne3 {[%clk 0:00:36.8]} 31... Be6 {[%clk
0:01:15.7]} 32. Ng2 {[%clk 0:00:33.9]} 32... a4 {[%clk 0:01:04.5]} 33. b4 {[%clk
0:00:31.1]} 33... a3 {[%clk 0:00:58.2]} 34. Nf4 {[%clk 0:00:29.2]} 34... Bf7
{[%clk 0:00:56.2]} 35. Rfd1 {[%clk 0:00:20.5]} 35... Rd4 {[%clk 0:00:53.5]} 36.
Ne2 {[%clk 0:00:15.1]} 36... Rxb4 {[%clk 0:00:51.8]} 37. Nc3 {[%clk 0:00:12.7]}
37... Rb2 {[%clk 0:00:50]} 38. Rxb2 {[%clk 0:00:07.2]} 38... axb2 {[%clk
0:00:49.2]} 39. Rb1 {[%clk 0:00:05.9]} 39... b4 {[%clk 0:00:45.9]} 40. Nd1
{[%clk 0:00:04.8]} 40... Bxa2 {[%clk 0:00:43.5]} 41. Rxb2 {[%clk 0:00:03.8]}
41... b3 {[%clk 0:00:43.1]} 42. Nc3 {[%clk 0:00:01.9]} 42... Rd8 {[%clk
0:00:39.8]} 43. Nd1 {[%clk 0:00:00.3]} 43... d2 {[%clk 0:00:37.3]} 0-1

[Event "Live Chess"]
[Site "Chess.com"]
[Date "2023.05.20"]
[Round "-"]
[White "Ian-Morley"]
[Black "wadsy27"]
[Result "0-1"]
[WhiteElo "1032"]
[BlackElo "2587"]
[TimeControl "300"]
[EndTime "10:43:21 PDT"]
[Termination "wadsy27 won by resignation"]

1. e4 {[%clk 0:04:57.6]} 1... e6 {[%clk 0:04:56.2]} 2. d4 {[%clk 0:04:56]} 2...
d5 {[%clk 0:04:56.1]} 3. e5 {[%clk 0:04:55.3]} 3... c5 {[%clk 0:04:55]} 4. c3
{[%clk 0:04:54.7]} 4... Nc6 {[%clk 0:04:54.4]} 5. Nf3 {[%clk 0:04:52.9]} 5...
Qb6 {[%clk 0:04:52.2]} 6. a3 {[%clk 0:04:52.2]} 6... c4 {[%clk 0:04:51.1]} 7.
Be2 {[%clk 0:04:50.5]} 7... Na5 {[%clk 0:04:50.2]} 8. Nbd2 {[%clk 0:04:47.8]}
8... Bd7 {[%clk 0:04:49.2]} 9. O-O {[%clk 0:04:40]} 9... Ne7 {[%clk 0:04:42.1]}
10. Qe1 {[%clk 0:04:37.3]} 10... Ba4 {[%clk 0:02:36.2]} 11. Rb1 {[%clk
0:04:20.2]} 11... Bc2 {[%clk 0:02:31.9]} 12. Ra1 {[%clk 0:04:15.5]} 12... h6
{[%clk 0:02:31.1]} 13. Bd1 {[%clk 0:04:10.3]} 13... Bh7 {[%clk 0:02:29.2]} 14.
Nb1 {[%clk 0:03:54.3]} 14... O-O-O {[%clk 0:02:24]} 15. Qd2 {[%clk 0:03:33.8]}
15... Kb8 {[%clk 0:02:21.3]} 16. Ra2 {[%clk 0:03:25.3]} 16... Bxb1 {[%clk
0:02:19.4]} 17. Ra1 {[%clk 0:03:21.7]} 17... Bh7 {[%clk 0:02:18.3]} 18. b4
{[%clk 0:03:16.7]} 18... cxb3 {[%clk 0:02:17.1]} 19. Bb2 {[%clk 0:03:13.9]}
19... Nc4 {[%clk 0:02:16]} 20. Qc1 {[%clk 0:03:11.6]} 20... Nc6 {[%clk 0:02:14]}
21. Nd2 {[%clk 0:03:09.7]} 21... Nxd2 {[%clk 0:02:11.5]} 22. Qxd2 {[%clk
0:03:08.8]} 22... Na5 {[%clk 0:02:10.7]} 23. Be2 {[%clk 0:02:54.3]} 23... Nc4
{[%clk 0:02:09.7]} 24. Qc1 {[%clk 0:02:52.3]} 24... Be7 {[%clk 0:02:08.2]} 25.
Rd1 {[%clk 0:02:46.5]} 25... a5 {[%clk 0:02:06.8]} 26. Bxc4 {[%clk 0:02:44.3]}
26... dxc4 {[%clk 0:02:05.7]} 27. Qf4 {[%clk 0:02:38]} 27... Bg6 {[%clk
0:02:03.1]} 28. g3 {[%clk 0:02:35.2]} 28... Bg5 {[%clk 0:02:01.3]} 29. Qf3
{[%clk 0:02:29.3]} 29... Rd5 {[%clk 0:02:00.3]} 30. Bc1 {[%clk 0:02:25.8]} 30...
b2 {[%clk 0:01:56.5]} 31. Bxb2 {[%clk 0:02:21.7]} 31... Qxb2 {[%clk 0:01:54.7]}
0-1

[Event "Live Chess"]
[Site "Chess.com"]
[Date "2023.05.20"]
[Round "-"]
[White "smoggyrabbit"]
[Black "misha464"]
[Result "1-0"]
[WhiteElo "1616"]
[BlackElo "745"]
[TimeControl "300"]
[EndTime "10:43:25 PDT"]
[Termination "smoggyrabbit won by resignation"]

1. d4 {[%clk 0:04:59.2]} 1... d5 {[%clk 0:04:59.6]} 2. Nf3 {[%clk 0:04:57.9]}
2... Bg4 {[%clk 0:04:57.8]} 3. Ne5 {[%clk 0:04:44.6]} 3... Be6 {[%clk
0:04:48.7]} 4. e3 {[%clk 0:04:39.7]} 4... f6 {[%clk 0:04:45.4]} 5. Nf3 {[%clk
0:04:18.3]} 5... Bg4 {[%clk 0:04:44.3]} 6. Nbd2 {[%clk 0:04:15.6]} 6... e6
{[%clk 0:04:40.5]} 7. h3 {[%clk 0:04:10.1]} 7... Bxf3 {[%clk 0:04:39.7]} 8. Nxf3
{[%clk 0:04:08.9]} 8... Bd6 {[%clk 0:04:34.8]} 9. Bd3 {[%clk 0:04:06.6]} 9...
Ne7 {[%clk 0:04:32.3]} 10. b3 {[%clk 0:04:05.3]} 10... Nbc6 {[%clk 0:04:31.1]}
11. Bb2 {[%clk 0:04:03.9]} 11... Qd7 {[%clk 0:04:29]} 12. c4 {[%clk 0:03:57.7]}
12... dxc4 {[%clk 0:04:26.2]} 13. bxc4 {[%clk 0:03:56.4]} 13... e5 {[%clk
0:04:25.4]} 14. c5 {[%clk 0:03:49.5]} 14... exd4 {[%clk 0:04:18.7]} 15. cxd6
{[%clk 0:03:47.1]} 15... Qxd6 {[%clk 0:04:17.2]} 16. Bxd4 {[%clk 0:03:36.9]}
16... O-O {[%clk 0:04:11.3]} 1-0

[Event "Live Chess"]
[Site "Chess.com"]
[Date "2023.05.20"]
[Round "-"]
[White "DerbyKnight"]
[Black "bedsdrout"]
[Result "1-0"]
[WhiteElo "1604"]
[BlackElo "417"]
[TimeControl "300"]
[EndTime "10:43:28 PDT"]
[Termination "DerbyKnight won by checkmate"]

1. e4 {[%clk 0:04:57.8]} 1... e5 {[%clk 0:04:57.1]} 2. Nf3 {[%clk 0:04:55.9]}
2... Bc5 {[%clk 0:04:52.9]} 3. d4 {[%clk 0:04:50.9]} 3... Bb6 {[%clk 0:04:49.8]}
4. Bc4 {[%clk 0:04:47]} 4... exd4 {[%clk 0:04:47.1]} 5. Nxd4 {[%clk 0:04:42]}
5... Qh4 {[%clk 0:04:41.2]} 6. O-O {[%clk 0:04:35]} 6... c6 {[%clk 0:04:31.9]}
7. Nf5 {[%clk 0:04:31.5]} 7... Qh5 {[%clk 0:04:28]} 8. Qxh5 {[%clk 0:04:24.8]}
8... Bc7 {[%clk 0:04:24.7]} 9. Nxg7+ {[%clk 0:04:19.3]} 9... Kf8 {[%clk
0:04:21.3]} 10. Bh6 {[%clk 0:04:12.6]} 10... Ke7 {[%clk 0:04:13.6]} 11. Qxf7+
{[%clk 0:04:09.3]} 11... Kd6 {[%clk 0:04:10.7]} 12. e5+ {[%clk 0:04:04.1]} 12...
Kxe5 {[%clk 0:04:07.5]} 13. Re1+ {[%clk 0:03:56.4]} 13... Kd6 {[%clk 0:03:32.7]}
14. Bf4+ {[%clk 0:03:49]} 14... Kc5 {[%clk 0:03:19.2]} 15. Bxc7 {[%clk
0:03:48.2]} 15... Na6 {[%clk 0:03:08.3]} 16. Nc3 {[%clk 0:03:46.6]} 16... d6
{[%clk 0:02:45.6]} 17. Bxd6+ {[%clk 0:02:40.1]} 17... Kxd6 {[%clk 0:02:39.6]}
18. Rad1+ {[%clk 0:02:40]} 18... Kc5 {[%clk 0:02:35.9]} 19. Qf8+ {[%clk
0:02:30.9]} 19... Kxc4 {[%clk 0:02:21.5]} 20. Re4# {[%clk 0:02:20.6]} 1-0

[Event "Live Chess"]
[Site "Chess.com"]
[Date "2023.05.20"]
[Round "-"]
[White "Ninifu"]
[Black "FlyingChessKestrel13"]
[Result "0-1"]
[WhiteElo "1985"]
[BlackElo "2132"]
[TimeControl "300"]
[EndTime "10:43:42 PDT"]
[Termination "FlyingChessKestrel13 won on time"]

1. d4 {[%clk 0:04:53.8]} 1... d5 {[%clk 0:04:58.8]} 2. c4 {[%clk 0:04:51.4]}
2... dxc4 {[%clk 0:04:57]} 3. Nf3 {[%clk 0:04:49.8]} 3... Nf6 {[%clk 0:04:52.2]}
4. Nc3 {[%clk 0:04:48.7]} 4... a6 {[%clk 0:04:50.9]} 5. e4 {[%clk 0:04:47.3]}
5... e6 {[%clk 0:04:47.6]} 6. Bxc4 {[%clk 0:04:44.7]} 6... b5 {[%clk 0:04:46.8]}
7. Bd3 {[%clk 0:04:43.9]} 7... b4 {[%clk 0:04:46.2]} 8. Ne2 {[%clk 0:04:30.6]}
8... c5 {[%clk 0:04:44.1]} 9. O-O {[%clk 0:04:22.8]} 9... cxd4 {[%clk
0:04:42.8]} 10. Nexd4 {[%clk 0:04:21.8]} 10... Bc5 {[%clk 0:04:40.1]} 11. Nb3
{[%clk 0:04:19.7]} 11... Be7 {[%clk 0:04:39]} 12. Qe2 {[%clk 0:04:14.5]} 12...
O-O {[%clk 0:04:37.7]} 13. Rd1 {[%clk 0:04:08.9]} 13... Qc7 {[%clk 0:04:35.6]}
14. Bg5 {[%clk 0:03:58.6]} 14... a5 {[%clk 0:04:33.9]} 15. Rac1 {[%clk
0:03:46.8]} 15... Qb7 {[%clk 0:04:31.1]} 16. e5 {[%clk 0:03:37]} 16... Nd5
{[%clk 0:04:27.8]} 17. Bxe7 {[%clk 0:03:31.5]} 17... Qxe7 {[%clk 0:04:25.9]} 18.
Qe4 {[%clk 0:03:19.9]} 18... g6 {[%clk 0:04:21.4]} 19. Nbd4 {[%clk 0:03:02]}
19... Bb7 {[%clk 0:04:18.8]} 20. Qg4 {[%clk 0:02:44.8]} 20... Nd7 {[%clk
0:04:09.5]} 21. Nc6 {[%clk 0:02:19.8]} 21... Bxc6 {[%clk 0:04:06.2]} 22. Rxc6
{[%clk 0:02:18.4]} 22... Nc5 {[%clk 0:03:50.7]} 23. Bb1 {[%clk 0:02:04.6]} 23...
Na4 {[%clk 0:03:41.7]} 24. Ng5 {[%clk 0:01:36.1]} 24... Nxb2 {[%clk 0:03:29.1]}
25. Rd4 {[%clk 0:01:26.1]} 25... Rac8 {[%clk 0:03:22.2]} 26. Rxc8 {[%clk
0:01:19.6]} 26... Rxc8 {[%clk 0:03:20.1]} 27. h4 {[%clk 0:01:19]} 27... Rc1+
{[%clk 0:03:04.3]} 28. Kh2 {[%clk 0:01:18.3]} 28... Rxb1 {[%clk 0:03:03.1]} 29.
h5 {[%clk 0:01:17.8]} 29... Re1 {[%clk 0:02:48.2]} 30. hxg6 {[%clk 0:00:23.2]}
30... fxg6 {[%clk 0:02:43.1]} 31. Nxe6 {[%clk 0:00:17.2]} 31... Rxe5 {[%clk
0:02:38.5]} 32. Ng5 {[%clk 0:00:04.1]} 32... Rxg5 {[%clk 0:02:33.3]} 0-1

[Event "Live Chess"]
[Site "Chess.com"]
[Date "2023.05.20"]
[Round "-"]
[White "Jio85"]
[Black "Greenbecker"]
[Result "1/2-1/2"]
[WhiteElo "2006"]
[BlackElo "1663"]
[TimeControl "300"]
[EndTime "10:43:46 PDT"]
[Termination "Game drawn - timeout vs insufficient material"]

1. e4 {[%clk 0:04:58]} 1... e6 {[%clk 0:04:58.9]} 2. d4 {[%clk 0:04:56.5]} 2...
d5 {[%clk 0:04:58.1]} 3. e5 {[%clk 0:04:56.2]} 3... c5 {[%clk 0:04:56.8]} 4. c3
{[%clk 0:04:55.3]} 4... Nc6 {[%clk 0:04:55.6]} 5. Nf3 {[%clk 0:04:55]} 5... Qb6
{[%clk 0:04:54.6]} 6. Bd3 {[%clk 0:04:54.6]} 6... cxd4 {[%clk 0:04:52.3]} 7. O-O
{[%clk 0:04:52.9]} 7... Bd7 {[%clk 0:04:50.1]} 8. Re1 {[%clk 0:04:50.4]} 8...
Nge7 {[%clk 0:04:49]} 9. h3 {[%clk 0:04:44.8]} 9... Ng6 {[%clk 0:04:47.9]} 10.
g3 {[%clk 0:04:42.5]} 10... dxc3 {[%clk 0:04:30.4]} 11. Nxc3 {[%clk 0:04:40.3]}
11... Bb4 {[%clk 0:04:21.6]} 12. a3 {[%clk 0:03:26.5]} 12... Bxc3 {[%clk
0:04:06.4]} 13. bxc3 {[%clk 0:03:24.8]} 13... O-O {[%clk 0:04:03.5]} 14. Be3
{[%clk 0:03:13.9]} 14... Qc7 {[%clk 0:04:01.2]} 15. Bd4 {[%clk 0:03:04.1]} 15...
Nxd4 {[%clk 0:03:54]} 16. cxd4 {[%clk 0:03:02.8]} 16... Rac8 {[%clk 0:03:51.5]}
17. Qd2 {[%clk 0:02:58.6]} 17... Qc3 {[%clk 0:03:42.7]} 18. Qe3 {[%clk
0:02:49.9]} 18... Qa5 {[%clk 0:03:21.3]} 19. h4 {[%clk 0:02:41.4]} 19... Rc3
{[%clk 0:03:18.1]} 20. h5 {[%clk 0:02:38.9]} 20... Ne7 {[%clk 0:03:13.3]} 21.
Rec1 {[%clk 0:02:23.3]} 21... Rfc8 {[%clk 0:03:06.1]} 22. Rxc3 {[%clk
0:02:02.3]} 22... Rxc3 {[%clk 0:02:54.1]} 23. Rc1 {[%clk 0:02:00.1]} 23... Rxc1+
{[%clk 0:02:37.3]} 24. Qxc1 {[%clk 0:01:57.6]} 24... Nc6 {[%clk 0:02:33.4]} 25.
Qg5 {[%clk 0:01:49.7]} 25... Qxa3 {[%clk 0:02:23.5]} 26. h6 {[%clk 0:01:43.5]}
26... g6 {[%clk 0:02:16.6]} 27. Qf6 {[%clk 0:01:39.9]} 27... Qf8 {[%clk
0:02:11.1]} 28. Ng5 {[%clk 0:01:33.8]} 28... Be8 {[%clk 0:02:03]} 29. Bxg6
{[%clk 0:00:53.5]} 29... fxg6 {[%clk 0:01:39.3]} 30. Qxe6+ {[%clk 0:00:49.8]}
30... Bf7 {[%clk 0:01:33.5]} 31. Qd7 {[%clk 0:00:46.1]} 31... Nxd4 {[%clk
0:01:18.9]} 32. e6 {[%clk 0:00:34.9]} 32... Nxe6 {[%clk 0:01:01.2]} 33. Nxe6
{[%clk 0:00:32.7]} 33... Bxe6 {[%clk 0:00:58.7]} 34. Qxe6+ {[%clk 0:00:32]}
34... Qf7 {[%clk 0:00:56.7]} 35. Qc8+ {[%clk 0:00:31.1]} 35... Qf8 {[%clk
0:00:54.9]} 36. Qxb7 {[%clk 0:00:28.9]} 36... Qxh6 {[%clk 0:00:51.3]} 37. Qxd5+
{[%clk 0:00:28.1]} 37... Kf8 {[%clk 0:00:46]} 38. Qa8+ {[%clk 0:00:26.5]} 38...
Kf7 {[%clk 0:00:42.1]} 39. Qxa7+ {[%clk 0:00:26.4]} 39... Kg8 {[%clk 0:00:38.6]}
40. Qa2+ {[%clk 0:00:24.5]} 40... Kg7 {[%clk 0:00:36.6]} 41. Qb2+ {[%clk
0:00:23.1]} 41... Kg8 {[%clk 0:00:35.8]} 42. Qb3+ {[%clk 0:00:21.9]} 42... Kg7
{[%clk 0:00:34.2]} 43. Qc3+ {[%clk 0:00:21.4]} 43... Kg8 {[%clk 0:00:32.7]} 44.
Qc4+ {[%clk 0:00:21]} 44... Kg7 {[%clk 0:00:31.4]} 45. Qc7+ {[%clk 0:00:20.7]}
45... Kg8 {[%clk 0:00:28.6]} 46. Qc4+ {[%clk 0:00:20.3]} 46... Kg7 {[%clk
0:00:27.6]} 47. Qd4+ {[%clk 0:00:20]} 47... Kg8 {[%clk 0:00:26.5]} 48. Qd5+
{[%clk 0:00:19.7]} 48... Kg7 {[%clk 0:00:25.5]} 49. Qe5+ {[%clk 0:00:19.6]}
49... Kg8 {[%clk 0:00:23.5]} 50. Qe6+ {[%clk 0:00:19.2]} 50... Kg7 {[%clk
0:00:21.5]} 51. Qe7+ {[%clk 0:00:18.5]} 51... Kg8 {[%clk 0:00:20.6]} 52. Qd8+
{[%clk 0:00:18]} 52... Kg7 {[%clk 0:00:19.5]} 53. Qe7+ {[%clk 0:00:17.1]} 53...
Kg8 {[%clk 0:00:18.6]} 54. Qe6+ {[%clk 0:00:16.9]} 54... Kg7 {[%clk 0:00:17.6]}
55. Qe3 {[%clk 0:00:16.8]} 55... Qxe3 {[%clk 0:00:15.1]} 56. fxe3 {[%clk
0:00:16.7]} 56... Kf6 {[%clk 0:00:14.1]} 57. Kf2 {[%clk 0:00:16.6]} 57... Ke5
{[%clk 0:00:13.3]} 58. Kf3 {[%clk 0:00:16.5]} 58... h5 {[%clk 0:00:11.9]} 59.
Kf2 {[%clk 0:00:14.4]} 59... g5 {[%clk 0:00:10.8]} 60. Kg2 {[%clk 0:00:13.9]}
60... Ke4 {[%clk 0:00:10]} 61. Kf2 {[%clk 0:00:13.5]} 61... h4 {[%clk
0:00:09.1]} 62. g4 {[%clk 0:00:11.3]} 62... h3 {[%clk 0:00:07.6]} 63. Kg3 {[%clk
0:00:10.8]} 63... Kxe3 {[%clk 0:00:06.7]} 64. Kxh3 {[%clk 0:00:10.3]} 64... Kf4
{[%clk 0:00:05.5]} 65. Kh2 {[%clk 0:00:10.2]} 65... Kxg4 {[%clk 0:00:04.8]} 66.
Kg1 {[%clk 0:00:10.1]} 66... Kg3 {[%clk 0:00:04.1]} 67. Kf1 {[%clk 0:00:08.9]}
67... Kh2 {[%clk 0:00:03.3]} 68. Ke2 {[%clk 0:00:08.8]} 68... g4 {[%clk
0:00:02.8]} 69. Kd3 {[%clk 0:00:08.7]} 69... g3 {[%clk 0:00:02.3]} 70. Ke3
{[%clk 0:00:08.4]} 70... g2 {[%clk 0:00:01.9]} 71. Kf2 {[%clk 0:00:08.3]} 71...
g1=Q+ {[%clk 0:00:01.3]} 72. Kf3 {[%clk 0:00:08.2]} 72... Qg3+ {[%clk
0:00:00.7]} 73. Ke4 {[%clk 0:00:08.1]} 73... Kh3 {[%clk 0:00:00.2]} 74. Kd5
{[%clk 0:00:08]} 1/2-1/2

[Event "Live Chess"]
[Site "Chess.com"]
[Date "2023.05.20"]
[Round "-"]
[White "Enhard"]
[Black "lord_cll"]
[Result "1-0"]
[WhiteElo "1441"]
[BlackElo "1199"]
[TimeControl "300"]
[EndTime "10:43:46 PDT"]
[Termination "Enhard won by resignation"]

1. d4 {[%clk 0:04:58.7]} 1... Nf6 {[%clk 0:04:58]} 2. Bf4 {[%clk 0:04:57.3]}
2... g6 {[%clk 0:04:57.1]} 3. e3 {[%clk 0:04:56.5]} 3... Bg7 {[%clk 0:04:56.4]}
4. h3 {[%clk 0:04:54.1]} 4... d6 {[%clk 0:04:53.4]} 5. Nf3 {[%clk 0:04:52.6]}
5... O-O {[%clk 0:04:51]} 6. c3 {[%clk 0:04:50.6]} 6... Nbd7 {[%clk 0:04:45.7]}
7. Bh2 {[%clk 0:04:47.1]} 7... Re8 {[%clk 0:04:15.2]} 8. Bb5 {[%clk 0:04:44.9]}
8... c6 {[%clk 0:04:10.7]} 9. Be2 {[%clk 0:04:43.3]} 9... e5 {[%clk 0:04:06.3]}
10. dxe5 {[%clk 0:04:42]} 10... dxe5 {[%clk 0:04:05.2]} 11. O-O {[%clk
0:04:39.4]} 11... e4 {[%clk 0:03:57.3]} 12. Nd4 {[%clk 0:04:32]} 12... Nb6
{[%clk 0:03:40.7]} 13. Nd2 {[%clk 0:04:27.5]} 13... Nbd5 {[%clk 0:03:39]} 14.
Re1 {[%clk 0:03:54.9]} 14... b5 {[%clk 0:03:35.6]} 15. Nxc6 {[%clk 0:03:50.2]}
15... Qb6 {[%clk 0:03:22.1]} 16. Nd4 {[%clk 0:03:47.4]} 16... Nd7 {[%clk
0:03:01.5]} 17. Bxb5 {[%clk 0:03:44.2]} 17... a6 {[%clk 0:02:57.5]} 18. Bc6
{[%clk 0:03:35]} 18... Bb7 {[%clk 0:02:52.6]} 19. Bxd7 {[%clk 0:03:29.5]} 1-0

[Event "Live Chess"]
[Site "Chess.com"]
[Date "2023.05.20"]
[Round "-"]
[White "Dark_Night123"]
[Black "Missedidea"]
[Result "0-1"]
[WhiteElo "1575"]
[BlackElo "1698"]
[TimeControl "300"]
[EndTime "10:43:48 PDT"]
[Termination "Missedidea won by resignation"]

1. e4 {[%clk 0:04:59.2]} 1... c5 {[%clk 0:04:57.8]} 2. c3 {[%clk 0:04:58]} 2...
Nf6 {[%clk 0:04:55.7]} 3. e5 {[%clk 0:04:56.5]} 3... Nd5 {[%clk 0:04:55]} 4. d4
{[%clk 0:04:55.7]} 4... cxd4 {[%clk 0:04:52.5]} 5. cxd4 {[%clk 0:04:54.8]} 5...
d6 {[%clk 0:04:51.6]} 6. f4 {[%clk 0:04:50.5]} 6... Nc6 {[%clk 0:04:47.5]} 7.
Nc3 {[%clk 0:04:48.2]} 7... dxe5 {[%clk 0:04:37.3]} 8. fxe5 {[%clk 0:04:46.5]}
8... Bf5 {[%clk 0:04:29.7]} 9. Nf3 {[%clk 0:04:41.4]} 9... e6 {[%clk 0:04:23.9]}
10. Bb5 {[%clk 0:04:38.9]} 10... Qb6 {[%clk 0:04:17.8]} 11. Bxc6+ {[%clk
0:04:35.3]} 11... Qxc6 {[%clk 0:04:08.3]} 12. Nxd5 {[%clk 0:04:30]} 12... Qxd5
{[%clk 0:04:05.8]} 13. O-O {[%clk 0:04:28.6]} 13... Be7 {[%clk 0:04:00.5]} 14.
Qa4+ {[%clk 0:04:22.7]} 14... b5 {[%clk 0:03:55.3]} 15. Qd1 {[%clk 0:04:11]}
15... O-O {[%clk 0:03:53.3]} 16. Be3 {[%clk 0:04:10.2]} 16... Rfd8 {[%clk
0:03:49.7]} 17. a3 {[%clk 0:04:01.2]} 17... h6 {[%clk 0:03:44.5]} 18. Rc1 {[%clk
0:03:59.9]} 18... Rac8 {[%clk 0:03:42]} 19. Qd2 {[%clk 0:03:57.1]} 19... Qb3
{[%clk 0:03:22.8]} 20. Rc3 {[%clk 0:03:41.4]} 20... Rxc3 {[%clk 0:03:16.7]} 21.
Qxc3 {[%clk 0:03:40]} 21... Qxc3 {[%clk 0:03:15.2]} 22. bxc3 {[%clk 0:03:39.9]}
22... Rc8 {[%clk 0:03:13.1]} 23. Rc1 {[%clk 0:03:38.7]} 23... Bxa3 {[%clk
0:03:10.2]} 24. Ra1 {[%clk 0:03:36.5]} 24... Bb2 {[%clk 0:03:08.7]} 25. Rxa7
{[%clk 0:03:32.7]} 25... Bxc3 {[%clk 0:03:05.9]} 26. Nd2 {[%clk 0:03:20.2]}
26... b4 {[%clk 0:02:59.3]} 27. Nb3 {[%clk 0:03:15.8]} 27... Bc2 {[%clk
0:02:54.9]} 28. Nc5 {[%clk 0:03:10.6]} 28... b3 {[%clk 0:02:51.9]} 29. Na4
{[%clk 0:02:50.8]} 29... b2 {[%clk 0:02:44]} 0-1